bitfinex/quotes_SOLUSD_20240818
["timestamp","ask_amount","ask_price","bid_price","bid_amount"]
[1723959009230,0.25098,141.51,141.46,2.12438657]
[1723959009431,0.25098,141.51,141.45,9.38]
[1723959009652,0.25098,141.51,141.46,2.12438657]
[1723959009947,0.25098,141.51,141.45,9.38]
[1723959010149,0.25098,141.51,141.46,2.12438801]
[1723959010348,0.25098,141.51,141.47,2.12434449]
[1723959010541,0.25098,141.51,141.45,9.38]
[1723959010740,0.25098,141.51,141.46,2.12433058]
[1723959010944,0.25098,141.51,141.47,2.12433058]
[1723959011123,0.25098,141.51,141.45,9.38]
[1723959011330,0.25098,141.51,141.46,2.12433217]
[1723959011527,0.25098,141.51,141.47,2.12433217]
[1723959011746,0.25098,141.51,141.45,9.38]
[1723959011939,0.25098,141.51,141.46,2.12436472]
[1723959012151,0.25098,141.51,141.45,9.38]
[1723959012352,0.25098,141.51,141.46,2.12436393]
[1723959012628,0.25098,141.51,141.47,2.12436393]
[1723959012827,0.25098,141.51,141.45,9.38]
[1723959013034,0.25098,141.51,141.46,2.1243631]
[1723959013250,0.25098,141.51,141.47,2.1243631]
[1723959013452,0.25098,141.51,141.45,9.38]
[1723959013638,0.25098,141.51,141.46,2.12436469]
[1723959013833,0.25098,141.51,141.47,2.12436469]
[1723959014039,0.25098,141.51,141.45,9.38]
[1723959014243,0.25098,141.51,141.46,2.1243631]
[1723959014437,0.25098,141.51,141.47,2.1243631]
[1723959014638,0.25098,141.51,141.45,9.38]
[1723959014848,0.25098,141.51,141.46,2.12436469]
[1723959015059,0.25098,141.51,141.47,2.12436469]
[1723959015263,0.25098,141.51,141.45,9.38]
[1723959015445,0.25098,141.51,141.46,2.12435158]
[1723959015637,0.25098,141.51,141.47,2.12435158]
[1723959015846,0.25098,141.51,141.45,9.38]
[1723959016173,0.25098,141.51,141.46,2.12436247]
[1723959016463,0.25098,141.51,141.47,2.12436247]
[1723959016763,0.25098,141.51,141.45,9.38]
[1723959016958,0.25098,141.51,141.46,2.12436483]
[1723959017157,0.25098,141.51,141.47,2.12436483]
[1723959017338,0.25098,141.51,141.45,9.38]
[1723959017539,0.25098,141.51,141.46,2.12436324]
[1723959017740,0.25098,141.51,141.47,2.12436324]
[1723959017953,0.25098,141.51,141.45,9.38]
[1723959018157,0.25098,141.51,141.46,2.12436324]
[1723959018353,0.25098,141.51,141.47,2.12436324]
[1723959018658,0.25098,141.51,141.45,9.38]
[1723959018838,0.25098,141.51,141.46,2.12436324]
[1723959019047,0.25098,141.51,141.47,2.12436324]
[1723959019267,0.25098,141.51,141.45,9.38]
[1723959019438,0.25098,141.51,141.46,2.12436324]
[1723959019644,0.25098,141.51,141.45,9.38]
[1723959019645,0.25098,141.51,141.47,2.12436324]
[1723959019849,0.25098,141.51,141.45,9.38]
[1723959020162,0.25098,141.51,141.46,2.12436324]
[1723959020340,0.25098,141.51,141.47,2.12436324]
[1723959020544,0.25098,141.51,141.45,9.38]
[1723959020737,0.25098,141.51,141.46,2.12435395]
[1723959020942,5.19758,141.51,141.47,2.12435395]
[1723959021164,5.19758,141.51,141.46,6.23149176]
[1723959021465,5.19758,141.51,141.47,2.12435236]
[1723959021655,5.19758,141.51,141.45,9.38]
[1723959021857,0.12549,141.49,141.46,2.12436484]
[1723959022047,0.12549,141.49,141.44,6.2334015]
[1723959022243,0.12549,141.49,141.45,2.12457272]
[1723959022445,0.12549,141.49,141.43,11.14761087]
[1723959022751,0.12549,141.49,141.44,8.35815017]
[1723959022936,0.12549,141.49,141.45,2.12460495]
[1723959023140,0.12549,141.49,141.43,11.14812811]
[1723959023141,21.22,141.46,141.43,0.8437933]
[1723959023340,9.50549,141.44,141.43,0.8437933]
[1723959023760,59.83096,141.44,141.43,0.8437933]
[1723959023938,79.83096,141.44,141.43,0.8437933]
[1723959025256,0.12549,141.4,141.36,2.12576571]
[1723959025455,0.12549,141.4,141.32,10.60606631]
[1723959025456,54.88196,141.4,141.32,10.60606631]
[1723959025768,54.88196,141.4,141.33,22.12581855]
[1723959025960,54.88196,141.4,141.34,2.12581855]
[1723959026162,59.83256,141.4,141.35,2.12581855]
[1723959026355,59.83256,141.4,141.33,2.12582533]
[1723959026558,59.83256,141.4,141.34,2.12582533]
[1723959026874,59.83256,141.4,141.32,20.0]
[1723959027175,59.83256,141.4,141.33,2.12582803]
[1723959027344,59.83256,141.4,141.34,2.12582803]
[1723959027542,59.83256,141.4,141.33,2.12582803]
[1723959027760,59.83256,141.4,141.34,2.12582803]
[1723959027960,59.83256,141.4,141.33,2.12582803]
[1723959028168,59.83256,141.4,141.32,20.0]
[1723959028366,59.83256,141.4,141.33,2.12581665]
[1723959029248,59.83256,141.4,141.32,22.12581665]
[1723959029770,0.12549,141.38,141.32,2.12581665]
[1723959029966,0.25098,141.38,141.31,2.12581665]
[1723959030156,0.12549,141.37,141.32,2.12581665]
[1723959030340,0.12549,141.37,141.3,31.50581665]
[1723959030341,0.12549,141.36,141.3,31.50581665]
[1723959030544,0.12549,141.36,141.31,2.12581665]
[1723959031250,0.25098,141.37,141.3,31.50581665]
[1723959032272,0.25098,141.38,141.3,31.50593953]
[1723959032442,6.4389,141.39,141.32,9.38]
[1723959032639,16.4858,141.4,141.34,9.38]
[1723959032842,11.3887,141.42,141.36,9.38]
[1723959033273,6.4389,141.42,141.36,9.38]
[1723959033849,45.37647,141.41,141.36,9.38]
[1723959034739,6.4389,141.42,141.36,9.38]
[1723959035443,16.4858,141.43,141.36,9.38]
[1723959036779,0.12549,141.42,141.36,9.38]
[1723959042255,0.12549,141.42,141.38,9.38]
[1723959042456,16.4858,141.43,141.38,9.38]
[1723959043882,6.4389,141.45,141.4,9.38]
[1723959044676,6.4389,141.45,141.33,37.52]
[1723959044864,6.4389,141.45,141.38,9.38]
[1723959045066,0.12549,141.44,141.38,9.38]
[1723959047783,0.12549,141.44,141.32,2.12546573]
[1723959047986,4.9504,141.41,141.33,9.38]
[1723959048282,0.12549,141.39,141.33,9.38]
[1723959052264,0.12549,141.41,141.35,9.38]
[1723959052465,0.12549,141.42,141.35,9.38]
[1723959053802,0.12549,141.42,141.37,9.38]
[1723959054476,15.186,141.43,141.37,9.38]
[1723959055166,15.186,141.43,141.39,9.38]
[1723959055793,15.186,141.43,141.33,1.41442431]
[1723959055992,24.566,141.41,141.29,2.96941544]
[1723959056303,29.5162,141.41,141.31,9.38]
[1723959056593,0.25098,141.4,141.31,9.38]
[1723959056807,45.37647,141.4,141.31,9.38]
[1723959057172,45.37647,141.4,141.32,20.0]
[1723959060193,0.12549,141.39,141.3,20.0]
[1723959060377,0.12549,141.39,141.3,22.12602257]
[1723959060907,0.12549,141.39,141.3,22.12602527]
[1723959061277,5.07629,141.39,141.3,22.12602527]
[1723959061479,0.37647,141.38,141.3,22.12602527]
[1723959062377,0.37647,141.38,141.31,2.12602527]
[1723959062578,0.12549,141.38,141.31,2.12602527]
[1723959062882,21.6644,141.37,141.31,2.12602527]
[1723959064095,0.12549,141.36,141.31,2.12602527]
[1723959064287,0.12549,141.36,141.32,2.12602527]
[1723959064478,0.12549,141.36,141.31,2.12602527]
[1723959064678,0.12549,141.36,141.32,2.12602527]
[1723959064879,0.12549,141.36,141.31,2.12602527]
[1723959065196,0.12549,141.36,141.32,2.12602527]
[1723959065396,0.12549,141.36,141.33,2.12602527]
[1723959065596,0.12549,141.36,141.31,2.12602527]
[1723959065807,21.6644,141.37,141.32,2.12602527]
[1723959066005,21.6644,141.37,141.33,2.12602527]
[1723959066209,21.6644,141.37,141.3,30.60008936]
[1723959066210,21.6644,141.37,141.31,2.12602527]
[1723959066379,21.6644,141.37,141.32,2.12602527]
[1723959066700,21.6644,141.37,141.33,2.12602527]
[1723959066891,21.6644,141.37,141.31,2.12602527]
[1723959067092,21.6644,141.37,141.3,30.60008936]
[1723959067093,21.6644,141.37,141.32,2.12602527]
[1723959067281,21.6644,141.37,141.33,2.12602527]
[1723959067486,21.6644,141.37,141.34,2.12602527]
[1723959067687,21.6644,141.37,141.31,16.84020739]
[1723959067979,21.6644,141.37,141.32,2.1259816]
[1723959068208,0.12549,141.36,141.33,2.1259816]
[1723959068405,0.12549,141.36,141.34,2.1259816]
[1723959068716,0.12549,141.36,141.32,6.23744435]
[1723959069003,0.12549,141.36,141.33,2.12602329]
[1723959069200,0.12549,141.36,141.34,2.12602329]
[1723959069382,0.12549,141.36,141.35,2.12602329]
[1723959070593,0.25098,141.36,141.31,10.5952128]
[1723959070796,0.25098,141.36,141.32,8.36379]
[1723959071012,0.25098,141.36,141.33,2.12604034]
[1723959071193,0.25098,141.36,141.34,2.12604034]
[1723959071508,0.25098,141.36,141.31,10.5952128]
[1723959071809,0.25098,141.36,141.32,8.36671318]
[1723959071977,0.25098,141.36,141.33,2.12604353]
[1723959072181,0.25098,141.36,141.34,2.12604353]
[1723959072383,0.25098,141.36,141.32,6.24075367]
[1723959072596,0.25098,141.36,141.33,2.12604114]
[1723959072883,0.25098,141.36,141.34,2.12604114]
[1723959073206,0.25098,141.36,141.32,6.24075367]
[1723959073413,0.25098,141.36,141.33,2.12604114]
[1723959073613,0.25098,141.36,141.34,2.12604114]
[1723959073913,0.12549,141.36,141.32,6.24075367]
[1723959074086,0.12549,141.36,141.33,2.12604114]
[1723959074288,0.12549,141.36,141.34,2.12604114]
[1723959074499,0.12549,141.36,141.32,6.24075367]
[1723959074706,0.12549,141.36,141.33,2.1261398]
[1723959074896,0.12549,141.36,141.34,2.1261398]
[1723959075105,0.12549,141.36,141.32,6.24075367]
[1723959075435,45.50196,141.36,141.33,2.1261382]
[1723959075582,45.50196,141.36,141.31,6.24075367]
[1723959075911,45.50196,141.36,141.32,2.12624598]
[1723959076114,45.50196,141.36,141.33,2.12624598]
[1723959076314,45.50196,141.36,141.31,6.24075367]
[1723959076489,45.50196,141.36,141.32,2.12625299]
[1723959076811,45.50196,141.36,141.33,2.12625299]
[1723959076990,0.25098,141.36,141.31,6.24075367]
[1723959077197,45.12549,141.36,141.32,2.12625292]
[1723959077412,45.12549,141.36,141.33,2.12625292]
[1723959077719,45.12549,141.36,141.3,16.83770473]
[1723959077896,45.12549,141.36,141.31,2.12623979]
[1723959078092,45.12549,141.36,141.32,2.12623979]
[1723959078287,45.12549,141.36,141.33,2.12623979]
[1723959078492,45.12549,141.36,141.3,6.24249193]
[1723959078699,45.12549,141.36,141.31,2.12624441]
[1723959078902,45.12549,141.36,141.32,2.12624441]
[1723959079102,45.12549,141.36,141.33,2.12624441]
[1723959079322,45.12549,141.36,141.3,6.24249193]
[1723959079614,45.12549,141.36,141.31,2.12625292]
[1723959079811,45.12549,141.36,141.32,2.12625292]
[1723959080038,0.12549,141.36,141.3,6.24249193]
[1723959080234,0.12549,141.36,141.31,2.12625531]
[1723959080533,0.12549,141.36,141.32,2.12625531]
[1723959080728,0.12549,141.36,141.3,6.24239494]
[1723959080906,0.12549,141.36,141.31,2.12625535]
[1723959081108,0.12549,141.36,141.32,2.12625535]
[1723959081325,0.12549,141.36,141.3,6.24239494]
[1723959081533,0.12549,141.36,141.31,2.12625406]
[1723959081712,0.12549,141.36,141.32,2.12625406]
[1723959081919,0.25098,141.36,141.3,6.24239494]
[1723959082107,45.25098,141.36,141.31,2.12625406]
[1723959082308,45.25098,141.36,141.32,2.12625406]
[1723959082633,45.25098,141.36,141.29,17.68140104]
[1723959082825,45.25098,141.36,141.3,2.12627191]
[1723959083023,45.25098,141.36,141.31,2.12627191]
[1723959083218,45.25098,141.36,141.32,2.12627271]
[1723959083416,45.25098,141.36,141.29,17.68965224]
[1723959083610,0.12549,141.34,141.3,2.12628992]
[1723959083816,45.25098,141.34,141.31,2.12628992]
[1723959084108,22.3293,141.33,141.29,0.8437933]
[1723959084309,0.12549,141.32,141.29,0.8437933]
[1723959084608,0.12549,141.32,141.3,2.12650042]
[1723959084810,0.12549,141.32,141.29,0.8437933]
[1723959085134,0.12549,141.32,141.3,2.12655735]
[1723959085326,0.12549,141.32,141.29,0.8437933]
[1723959085513,0.12549,141.32,141.3,2.12655829]
[1723959085720,0.12549,141.32,141.29,0.8437933]
[1723959086032,0.12549,141.32,141.3,2.12655989]
[1723959086226,0.12549,141.32,141.29,0.8437933]
[1723959086409,0.12549,141.32,141.3,2.1265708]
[1723959086612,0.12549,141.32,141.29,0.8437933]
[1723959086842,0.12549,141.32,141.3,2.12656857]
[1723959087043,0.12549,141.32,141.29,0.8437933]
[1723959087332,0.12549,141.32,141.3,2.12656673]
[1723959087532,0.12549,141.32,141.29,0.8437933]
[1723959087709,0.12549,141.32,141.3,2.12657645]
[1723959088034,0.12549,141.32,141.29,0.8437933]
[1723959088424,0.12549,141.32,141.3,2.12657708]
[1723959088734,0.12549,141.32,141.29,0.8437933]
[1723959088938,0.12549,141.32,141.3,2.12657645]
[1723959089135,0.25098,141.32,141.29,0.8437933]
[1723959089504,45.25098,141.32,141.29,0.8437933]
[1723959091425,45.25098,141.32,141.3,2.12659431]
[1723959091736,45.25098,141.32,141.29,0.8437933]
[1723959091910,45.25098,141.32,141.3,2.12659368]
[1723959092106,0.12549,141.32,141.29,0.8437933]
[1723959092306,0.12549,141.32,141.3,2.12661505]
[1723959092509,0.12549,141.32,141.29,0.8437933]
[1723959093426,0.12549,141.32,141.3,2.12661976]
[1723959093631,0.12549,141.32,141.29,0.8437933]
[1723959093812,0.12549,141.32,141.3,2.12661959]
[1723959094127,0.12549,141.32,141.29,0.8437933]
[1723959094352,0.12549,141.32,141.3,2.12651387]
[1723959094552,0.12549,141.32,141.29,0.8437933]
[1723959094737,0.12549,141.32,141.3,2.12651324]
[1723959094935,0.12549,141.32,141.29,0.8437933]
[1723959095130,0.12549,141.32,141.3,2.12651404]
[1723959095342,0.12549,141.32,141.29,0.8437933]
[1723959095343,22.3293,141.33,141.31,2.12646963]
[1723959095538,22.3293,141.33,141.29,0.8437933]
[1723959095748,22.3293,141.33,141.3,2.12642441]
[1723959096056,22.3293,141.33,141.31,2.12642441]
[1723959096353,4.9515,141.37,141.32,2.12623435]
[1723959096354,26.6864,141.37,141.32,2.12623435]
[1723959096657,26.6864,141.37,141.29,16.52670143]
[1723959096954,26.6864,141.37,141.3,2.12632091]
[1723959097130,26.6864,141.37,141.31,2.12632091]
[1723959097330,26.6864,141.37,141.32,2.12632091]
[1723959097529,45.37647,141.36,141.29,16.52670143]
[1723959097753,45.37647,141.36,141.3,2.12636215]
[1723959097930,45.37647,141.36,141.31,2.12636215]
[1723959098122,45.37647,141.36,141.29,16.52670143]
[1723959098329,45.37647,141.36,141.3,2.12636215]
[1723959098648,45.37647,141.36,141.31,2.12636215]
[1723959098848,45.37647,141.36,141.29,16.52670143]
[1723959099032,45.37647,141.36,141.3,2.12636056]
[1723959099226,45.37647,141.36,141.29,16.52670143]
[1723959099227,45.37647,141.36,141.31,2.12636056]
[1723959099422,45.37647,141.36,141.32,2.12636056]
[1723959099644,45.37647,141.36,141.29,16.52670143]
[1723959099958,45.37647,141.36,141.3,2.12635976]
[1723959100146,45.37647,141.36,141.31,2.12635976]
[1723959100344,45.37647,141.36,141.32,2.12635976]
[1723959100651,45.37647,141.36,141.3,6.24290813]
[1723959100828,45.37647,141.36,141.31,2.12635753]
[1723959101028,45.37647,141.36,141.32,2.12635753]
[1723959101229,45.37647,141.36,141.3,6.24290813]
[1723959101537,45.37647,141.36,141.31,2.12636135]
[1723959101739,45.37647,141.36,141.32,2.12636135]
[1723959101958,50.32837,141.36,141.3,6.24290813]
[1723959102163,0.12549,141.35,141.31,2.12635976]
[1723959102341,0.12549,141.35,141.29,7.08670143]
[1723959102538,0.12549,141.33,141.3,2.12656372]
[1723959102737,0.12549,141.33,141.29,0.8437933]
[1723959102738,0.12549,141.31,141.29,0.8437933]
[1723959102952,0.25098,141.31,141.3,2.12666329]
[1723959103824,0.12549,141.31,141.3,2.12666329]
[1723959104944,0.12549,141.31,141.29,0.8437933]
[1723959105156,0.12549,141.31,141.3,2.12668628]
[1723959105738,0.12549,141.33,141.3,8.37390941]
[1723959105943,0.12549,141.33,141.31,2.12668628]
[1723959106149,0.12549,141.33,141.3,6.24722313]
[1723959106464,0.12549,141.33,141.31,2.12642441]
[1723959106758,0.12549,141.33,141.32,2.12642441]
[1723959107451,15.4957,141.34,141.32,2.12642441]
[1723959107666,15.4957,141.34,141.29,20.89551169]
[1723959107967,15.4957,141.34,141.3,8.37117242]
[1723959108153,15.4957,141.34,141.31,2.12640915]
[1723959108353,15.4957,141.34,141.29,10.2837933]
[1723959108533,15.4957,141.34,141.3,8.37066359]
[1723959108739,0.12549,141.33,141.31,2.12635148]
[1723959109058,0.12549,141.33,141.32,2.12635148]
[1723959117056,0.12549,141.33,141.29,10.2837933]
[1723959117255,0.12549,141.33,141.3,18.9834375]
[1723959117459,0.12549,141.33,141.31,8.37289057]
[1723959117668,0.12549,141.33,141.32,2.12636243]
[1723959118254,0.12549,141.35,141.32,2.12636243]
[1723959118466,0.12549,141.35,141.29,10.2837933]
[1723959118676,0.12549,141.35,141.31,10.60790301]
[1723959118858,0.12549,141.35,141.32,8.37119764]
[1723959119058,0.12549,141.35,141.33,2.12626039]
[1723959119255,0.12549,141.35,141.34,2.12625497]
[1723959120073,16.2032,141.38,141.34,2.12625497]
[1723959120288,16.2032,141.38,141.35,2.12624088]
[1723959120497,16.2032,141.38,141.32,10.60705041]
[1723959120684,16.2032,141.38,141.31,9.44]
[1723959120884,16.2032,141.38,141.32,18.97805994]
[1723959121079,16.2032,141.38,141.33,8.37074391]
[1723959121261,16.2032,141.38,141.34,2.12616145]
[1723959121458,0.12549,141.37,141.35,2.12616145]
[1723959121660,0.12549,141.37,141.32,10.60731603]
[1723959121954,0.12549,141.37,141.33,8.37047491]
[1723959122182,0.12549,141.37,141.34,2.12612887]
[1723959122371,0.12549,141.37,141.35,2.12612887]
[1723959122563,0.12549,141.37,141.32,10.60731603]
[1723959122770,0.12549,141.37,141.33,8.37074489]
[1723959123080,0.12549,141.37,141.34,2.12613126]
[1723959123285,0.12549,141.37,141.35,2.12613126]
[1723959123478,0.12549,141.37,141.32,10.60731957]
[1723959123794,0.12549,141.37,141.33,8.37074489]
[1723959124082,0.12549,141.37,141.34,2.12613126]
[1723959124289,0.12549,141.37,141.35,2.12613126]
[1723959124475,0.12549,141.37,141.32,10.60731957]
[1723959124676,0.12549,141.37,141.33,17.81070948]
[1723959124991,0.12549,141.37,141.34,2.12613126]
[1723959125182,0.12549,141.37,141.35,2.12613126]
[1723959125480,0.12549,141.37,141.33,9.44]
[1723959125793,0.12549,141.37,141.34,2.12611103]
[1723959126093,0.12549,141.37,141.35,2.12611103]
[1723959126388,0.12549,141.37,141.33,9.44]
[1723959126693,0.12549,141.37,141.34,2.12611262]
[1723959126990,0.12549,141.37,141.35,2.12611262]
[1723959127287,0.12549,141.37,141.33,6.24423744]
[1723959127495,0.12549,141.37,141.34,2.12614831]
[1723959127496,45.50196,141.37,141.34,2.12614831]
[1723959127671,45.50196,141.37,141.32,6.24472758]
[1723959127867,45.50196,141.37,141.33,2.12614752]
[1723959128087,45.37647,141.37,141.34,2.12614752]
[1723959128281,45.37647,141.37,141.31,10.60757869]
[1723959128478,45.37647,141.37,141.32,8.3710983]
[1723959128684,45.37647,141.37,141.33,2.12614752]
[1723959128970,45.37647,141.37,141.34,2.12614752]
[1723959129179,45.37647,141.37,141.32,6.24730118]
[1723959129392,45.37647,141.37,141.3,20.04757869]
[1723959129393,45.37647,141.37,141.33,2.1262579]
[1723959129592,45.37647,141.37,141.34,2.1262579]
[1723959129795,45.37647,141.37,141.32,6.24730118]
[1723959130097,45.37647,141.37,141.33,2.12625949]
[1723959130268,45.37647,141.37,141.34,2.12625949]
[1723959130468,45.37647,141.37,141.31,10.60757869]
[1723959130695,45.37647,141.37,141.32,8.37439998]
[1723959130901,45.37647,141.37,141.33,2.12624407]
[1723959131191,45.37647,141.37,141.34,2.12624407]
[1723959131387,45.37647,141.37,141.31,10.60757869]
[1723959131598,45.37647,141.37,141.32,8.37437112]
[1723959131762,45.37647,141.37,141.33,2.12624168]
[1723959131967,45.37647,141.37,141.34,2.12624168]
[1723959132169,45.37647,141.37,141.31,10.60757869]
[1723959132392,45.37647,141.37,141.32,8.37437112]
[1723959132691,45.37647,141.37,141.33,2.12624168]
[1723959132874,45.37647,141.37,141.34,2.12624168]
[1723959133192,45.37647,141.37,141.32,6.24811769]
[1723959133398,45.37647,141.37,141.33,2.12625258]
[1723959133591,45.37647,141.37,141.34,2.12625258]
[1723959133788,45.37647,141.37,141.31,10.60757869]
[1723959133995,0.12549,141.35,141.32,8.37441952]
[1723959134172,0.12549,141.35,141.29,0.8437933]
[1723959134173,51.89786,141.35,141.29,0.8437933]
[1723959134374,66.29016,141.35,141.29,0.8437933]
[1723959134574,0.12549,141.33,141.29,0.8437933]
[1723959134790,45.37647,141.33,141.29,0.8437933]
[1723959136496,0.37647,141.33,141.29,0.8437933]
[1723959136672,0.12549,141.34,141.29,10.2837933]
[1723959137073,0.12549,141.34,141.29,0.8437933]
[1723959138481,45.50196,141.34,141.29,0.8437933]
[1723959141590,45.37647,141.34,141.29,0.8437933]
[1723959141892,0.25098,141.34,141.29,10.2837933]
[1723959146285,0.25098,141.34,141.29,0.8437933]
[1723959146491,0.12549,141.33,141.29,0.8437933]
[1723959146797,0.12549,141.32,141.29,0.8437933]
[1723959168440,27.4084,141.35,141.29,0.8437933]
[1723959169338,4.9526,141.34,141.29,0.8437933]
[1723959169525,0.12549,141.33,141.29,0.8437933]
[1723959169725,45.37647,141.33,141.29,0.8437933]
[1723959170143,50.32947,141.33,141.29,0.8437933]
[1723959170314,0.12549,141.32,141.29,0.8437933]
[1723959170515,0.12549,141.31,141.29,0.8437933]
[1723959170744,27.78099,141.3,141.29,0.8437933]
[1723959170929,73.15746,141.3,141.29,0.8437933]
[1723959171131,93.15746,141.3,141.29,0.8437933]
[1723959172260,114.42746,141.3,141.29,0.8437933]
[1723959174249,123.86746,141.3,141.29,0.8437933]
[1723959174746,126.66131087,141.3,141.29,0.8437933]
[1723959178318,95.95131087,141.3,141.29,0.8437933]
[1723959178521,93.15746,141.3,141.29,0.8437933]
[1723959179944,16.5275,141.3,141.29,0.8437933]
[1723959180822,21.4814,141.3,141.29,0.8437933]
[1723959181148,21.60689,141.3,141.29,0.8437933]
[1723959181350,66.98336,141.3,141.29,0.8437933]
[1723959181649,49.44682421,141.33,141.29,0.8437933]
[1723959181650,22.2404,141.33,141.29,0.8437933]
[1723959182943,4.9533,141.32,141.29,0.8437933]
[1723959183149,0.12549,141.31,141.29,0.8437933]
[1723959183355,45.37647,141.31,141.29,0.8437933]
[1723959183523,45.50196,141.31,141.29,0.8437933]
[1723959193463,45.37647,141.31,141.29,0.8437933]
[1723959193649,0.37647,141.31,141.29,0.8437933]
[1723959194072,9.63822421,141.36,141.29,0.8437933]
[1723959194238,20.12549,141.35,141.29,0.8437933]
[1723959194560,4.9526,141.34,141.29,0.8437933]
[1723959195136,5.07779,141.35,141.29,0.8437933]
[1723959195340,4.9523,141.35,141.29,0.8437933]
[1723959195575,15.8854,141.37,141.29,27.42774614]
[1723959195755,15.8854,141.37,141.3,1.41524616]
[1723959195756,20.8369,141.37,141.3,1.41524616]
[1723959195965,4.9515,141.37,141.3,1.41524616]
[1723959196636,4.9515,141.37,141.29,26.0123933]
[1723959196834,4.9512,141.38,141.29,26.0123933]
[1723959197051,35.02120697,141.4,141.31,9.44]
[1723959197242,37.12322421,141.4,141.31,9.44]
[1723959197847,4.9509,141.39,141.31,9.44]
[1723959198460,14.3909,141.39,141.29,16.5723933]
[1723959198669,14.3909,141.39,141.3,9.44]
[1723959199247,0.25098,141.38,141.3,9.44]
[1723959199663,45.25098,141.38,141.3,9.44]
[1723959202039,45.25098,141.38,141.29,16.5723933]
[1723959202040,0.12549,141.36,141.29,16.5723933]
[1723959202246,5.20298,141.36,141.29,16.5723933]
[1723959202551,0.12549,141.34,141.29,16.5723933]
[1723959203274,0.25098,141.34,141.29,16.5723933]
[1723959203783,0.12549,141.32,141.29,0.8437933]
[1723959206278,50.20428,141.32,141.29,0.8437933]
[1723959206975,45.25098,141.32,141.29,0.8437933]
[1723959208979,0.12549,141.32,141.29,0.8437933]
[1723959215481,0.12549,141.33,141.29,0.8437933]
[1723959215669,45.50196,141.33,141.29,0.8437933]
[1723959217980,54.94196,141.33,141.29,0.8437933]
[1723959218177,0.12549,141.31,141.29,0.8437933]
[1723959218382,0.50196,141.31,141.29,0.8437933]
[1723959218977,0.12549,141.32,141.29,0.8437933]
[1723959219171,0.25098,141.32,141.29,0.8437933]
[1723959221378,0.12549,141.31,141.29,0.8437933]
[1723959221581,0.12549,141.3,141.29,0.8437933]
[1723959221781,0.25098,141.3,141.29,0.8437933]
[1723959228570,0.12549,141.3,141.29,0.8437933]
[1723959240201,0.12549,141.35,141.29,0.8437933]
[1723959240402,0.12549,141.34,141.29,0.8437933]
[1723959240578,0.12549,141.33,141.29,0.8437933]
[1723959240786,0.25098,141.33,141.29,0.8437933]
[1723959241495,4.9516,141.37,141.3,25.4007]
[1723959242899,0.12549,141.35,141.3,25.4007]
[1723959243794,0.12549,141.35,141.3,15.9607]
[1723959248099,0.12549,141.35,141.31,15.7279]
[1723959251208,0.12549,141.35,141.31,6.2879]
[1723959261912,0.12549,141.35,141.3,15.9607]
[1723959262210,0.25098,141.35,141.3,15.9607]
[1723959262425,0.12549,141.34,141.3,15.9607]
[1723959262629,0.12549,141.33,141.3,15.9607]
[1723959262920,0.12549,141.34,141.3,15.9607]
[1723959266940,0.12549,141.33,141.29,0.8437933]
[1723959267237,45.37647,141.33,141.29,0.8437933]
[1723959267401,0.12549,141.32,141.29,0.8437933]
[1723959267602,0.12549,141.31,141.29,0.8437933]
[1723959267827,0.25098,141.31,141.29,0.8437933]
[1723959272212,15.3296,141.38,141.3,9.44]
[1723959272413,1.23383637,141.4,141.32,9.44]
[1723959272609,10.67383637,141.4,141.32,9.44]
[1723959272831,9.44,141.4,141.32,9.44]
[1723959273335,30.71,141.4,141.32,9.44]
[1723959273533,0.12549,141.39,141.32,9.44]
[1723959273837,0.12549,141.37,141.32,9.44]
[1723959274028,45.50196,141.37,141.32,9.44]
[1723959274627,45.37647,141.37,141.32,9.44]
[1723959287628,50.32807,141.37,141.31,15.3689]
[1723959287854,0.12549,141.35,141.31,15.3689]
[1723959288058,45.37647,141.35,141.31,15.3689]
[1723959292350,54.81647,141.35,141.29,0.8437933]
[1723959292527,0.12549,141.33,141.29,0.8437933]
[1723959292730,5.32947,141.33,141.29,0.8437933]